fUSD/lending_fUSD_20240104
["ID","MTS","AMOUNT","RATE_DAILY","PERIOD"]
[310108024,1704347441735,-150.0,0.00032688,2]
[310108025,1704347441744,-150.0,0.00032689,2]
[310108026,1704347441754,-200.0,0.00032697,2]
[310108028,1704347441765,-176.0,0.00032697,2]
[310108030,1704347441775,-1902.22814077,0.00032697,4]
[310108032,1704347441785,-21544.98206469,0.00032697,4]
[310108035,1704347441795,-237.39756375,0.00032697,2]
[310108039,1704347442061,-400.0,0.00032697,2]
[310108040,1704347442071,-7916.29878162,0.00032697,2]
[310108041,1704347442081,-935.53570843,0.00032697,2]
[310108042,1704347442090,-766.56764818,0.00032697,2]
[310108043,1704347442099,-157.40104,0.00032698,2]
[310108044,1704347442109,-224.73014791,0.00032698,4]
[310108045,1704347442118,-1424.24937271,0.00032698,2]
[310108046,1704347442127,-2035.82516095,0.00032698,2]
[310108047,1704347442137,-2750.14115414,0.00032698,2]
[310108048,1704347442146,-150.0,0.00032698,2]
[310108049,1704347442155,-150.0,0.00032698,2]
[310108050,1704347442165,-318.0,0.00032699,5]
[310108051,1704347442174,-9681.77,0.00032699,3]
[310108052,1704347442183,-151.0,0.00032699,7]
[310108053,1704347442193,-151.0,0.00032699,2]
[310108054,1704347442202,-151.0,0.00032699,7]
[310108055,1704347442212,-16603.90440559,0.00032699,4]
[310108056,1704347442224,-151.0,0.00032699,7]
[310108057,1704347442235,-151.0,0.00032699,7]
[310108058,1704347442245,-450.0,0.00032699,7]
[310108059,1704347442254,-450.0,0.00032699,7]
[310108060,1704347442263,-70804.02060926,0.00032699,2]
[310108061,1704347442281,-6422.04001,0.00032699,2]
[310108067,1704347443215,-3005.28149969,0.00032699,2]
[310108068,1704347443227,-6024.20802756,0.00032699,2]
[310108099,1704347446094,-151.08658863,0.00032677,2]
[310108101,1704347446103,-3510.22294421,0.00032699,2]
[310108107,1704347446155,-674.79429573,0.00032699,2]
[310108108,1704347446216,-483.10490437,0.00032699,2]
[310108109,1704347446918,-1316.89876317,0.00032699,2]
[310108110,1704347446939,-1463.50717894,0.00032677,2]
[310108111,1704347446950,-8591.98636206,0.00032699,2]
[310108112,1704347453105,1409.30881964,0.00021,2]
[310108113,1704347469276,155.0,0.00021,2]
[310108115,1704347520505,157.94027106,0.00021,2]
[310108116,1704347528905,882.89324695,0.00021,2]
[310108142,1704347935917,180.19962783,0.00020698,2]
[310108143,1704348026468,414.470261,0.00022422,2]
[310108144,1704348180415,438.0,0.00022317,2]
[310108145,1704348225934,155.91507859,0.00020698,2]
[310108149,1704348433543,200.0,0.000229,8]
[310108152,1704348531062,-337.25800188,0.00022694,2]
[310108153,1704348531086,-150.0,0.00022695,2]
[310108154,1704348531107,-250.0,0.00022698,2]
[310108155,1704348531129,-193.24241596,0.000229,2]
[310108156,1704348531151,-247.79798554,0.000229,2]
[310108157,1704348531172,-204.99891904,0.000229,2]
[310108158,1704348531195,-338.92310807,0.000229,2]
[310108159,1704348531218,-1208.34884825,0.00022998,2]
[310108160,1704348531240,-393.52900517,0.00022998,2]
[310108161,1704348531261,-156.34585878,0.00022999,2]
[310108162,1704348531282,-150.0,0.00022999,2]
[310108163,1704348531579,-696369.55585731,0.00023,2]
[310108178,1704348632312,-324.55703253,0.000229,2]
[310108179,1704348632324,-43.38899934,0.000229,2]
[310108180,1704348632334,-337.25800188,0.00022996,2]
[310108181,1704348632343,-368.26257327,0.00022997,2]
[310108182,1704348632365,-912.52924596,0.00022997,2]
[310108183,1704348632385,-451.31297792,0.00022997,2]
[310108184,1704348632397,-734.84098344,0.00022997,2]
[310108185,1704348632409,-1147.72880316,0.00022997,2]
[310108186,1704348632419,-706.51362449,0.00022998,2]
[310108187,1704348632428,-2705.86023481,0.00022999,2]
[310108188,1704348632439,-3254.25369076,0.00022999,2]
[310108189,1704348632450,-2713.77991897,0.00022999,2]
[310108190,1704348632461,-638.93309227,0.00022999,2]
[310108191,1704348632474,-3060.50973781,0.00022999,2]
[310108192,1704348632532,-1098.19408647,0.00022999,2]
[310108193,1704348632545,-50691.87332887,0.00022999,2]
[310108194,1704348632557,-245772.23499828,0.00022999,2]
[310108195,1704348632565,-71781.54596758,0.00023,2]
[310108196,1704348632574,-845.154,0.00023,2]
[310108197,1704348632583,-1322.63947151,0.000233,2]
[310108198,1704348632592,-999.99,0.000237,2]
[310108199,1704348632600,-499.99,0.000237,2]
[310108200,1704348632610,-12570.76,0.000237,2]
[310108201,1704348632619,-413.62,0.000237,2]
[310108203,1704348632629,-150.99,0.000237,2]
[310108205,1704348632638,-2166.93,0.000239,2]
[310108207,1704348632648,-519.8,0.000239,2]
[310108209,1704348632657,-430.24132448,0.00024,2]
[310108211,1704348632666,-247.79798548,0.00024614,2]
[310108213,1704348632675,-1322.63947149,0.00024957,2]
[310108215,1704348632685,-432.03141494,0.00025,2]
[310108217,1704348632694,-155.63298431,0.00025,2]
[310108219,1704348632704,-7947.95038113,0.00025,2]
[310108221,1704348632713,-511.39,0.00025703,2]
[310108222,1704348632722,-1019.82327101,0.00025808,2]
[310108223,1704348632731,-247.79798548,0.00026329,3]
[310108224,1704348632741,-1322.63947149,0.00026614,3]
[310108225,1704348632751,-350.0,0.00027,3]
[310108226,1704348632761,-150.0,0.00027335,2]
[310108227,1704348632771,-400.0,0.000274,2]
[310108228,1704348632781,-23890.0,0.00027418,2]
[310108229,1704348632791,-167.05,0.00027427,2]
[310108230,1704348632800,-166.52,0.00027438,2]
[310108231,1704348632810,-733.44,0.0002745,2]
[310108232,1704348632819,-150.63,0.00027453,2]
[310108233,1704348632829,-386.93,0.00027454,2]
[310108234,1704348632838,-671.96251305,0.000275,4]
[310108235,1704348632848,-161.07,0.00027514,2]
[310108236,1704348632857,-483.97,0.00027569,2]
[310108237,1704348632867,-266.56,0.0002759,2]
[310108238,1704348632876,-154.46,0.00027609,2]
[310108239,1704348632886,-882.0,0.00027768,2]
[310108240,1704348632895,-212.403,0.00027768,2]
[310108241,1704348632904,-176.8,0.00027823,2]
[310108242,1704348632913,-200.0,0.00027838,2]
[310108243,1704348632922,-169.62,0.00027848,2]
[310108244,1704348632931,-206.0,0.00027893,2]
[310108245,1704348632941,-159.56,0.00027906,2]
[310108246,1704348632950,-926.89,0.00027945,2]
[310108247,1704348632959,-2273.23,0.00027945,2]
[310108248,1704348632969,-175.54,0.00027951,2]
[310108249,1704348632979,-511.39,0.00027967,2]
[310108250,1704348632988,-688.81488113,0.00028,2]
[310108251,1704348632998,-156.35,0.00028032,2]
[310108252,1704348633007,-247.79798548,0.00028043,3]
[310108253,1704348633016,-159.56,0.00028105,2]
[310108254,1704348633026,-169.62,0.00028211,2]
[310108255,1704348633036,-1322.63947149,0.00028271,4]
[310108256,1704348633045,-159.56,0.00028304,2]
[310108257,1704348633055,-159.56,0.00028503,2]
[310108258,1704348633064,-483.97,0.00028548,2]
[310108259,1704348633073,-169.62,0.00028574,2]
[310108260,1704348633082,-159.56,0.00028703,2]
[310108261,1704348633091,-159.56,0.00028902,2]
[310108262,1704348633101,-169.62,0.00028937,2]
[310108263,1704348633110,-400.0,0.00029,3]
[310108264,1704348633119,-18836.208158,0.00029,2]
[310108265,1704348633128,-159.56,0.00029101,2]
[310108266,1704348633138,-169.62,0.00029299,2]
[310108267,1704348633147,-159.56,0.00029301,2]
[310108268,1704348633157,-154.46,0.0002934,2]
[310108269,1704348633167,-159.56,0.000295,2]
[310108270,1704348633178,-483.97,0.00029526,2]
[310108271,1704348633188,-159.56,0.00029699,2]
[310108272,1704348633198,-247.79798548,0.00029757,4]
[310108273,1704348633207,-156.35,0.0002979,2]
[310108274,1704348633217,-159.56,0.00029899,2]
[310108275,1704348633227,-1322.63947149,0.00029929,4]
[310108276,1704348633237,-6683.61196707,0.00029999,2]
[310108277,1704348633250,-274.58124565,0.0003,4]
[310108278,1704348633258,-28420.32734628,0.0003,4]
[310108279,1704348633268,-681.6710574,0.0003,4]
[310108280,1704348633278,-9674.16825732,0.0003,2]
[310108281,1704348633288,-325.22221659,0.0003,5]
[310108282,1704348633297,-175.77,0.0003,2]
[310108283,1704348633307,-500.0,0.0003,2]
[310108284,1704348633316,-157.20254681,0.0003,2]
[310108285,1704348633325,-159.56,0.00030098,2]
[310108286,1704348633335,-153.84,0.000302,2]
[310108287,1704348633345,-511.39,0.0003023,2]
[310108288,1704348633354,-159.56,0.00030297,2]
[310108289,1704348633363,-159.56,0.00030497,2]
[310108290,1704348633373,-483.97,0.00030504,2]
[310108291,1704348633385,-175.77,0.00030548,2]
[310108292,1704348633397,-812.08455662,0.00030548,2]
[310108293,1704348633406,-159.56,0.00030696,2]
[310108294,1704348633416,-151.0,0.00030761,120]
[310108295,1704348633426,-733.44,0.00030881,2]
[310108296,1704348633435,-500.0,0.000309,11]
[310108297,1704348633444,-247.79798551,0.000309,5]
[310108298,1704348633454,-189.37,0.00030912,2]
[310108299,1704348633465,-1000.0,0.00030999,2]
[310108300,1704348633477,-1000.0,0.00030999,2]
[310108301,1704348633485,-1000.0,0.00030999,2]
[310108302,1704348633496,-674.86044919,0.00030999,2]
[310108303,1704348633505,-326.0,0.00031,5]
[310108304,1704348633514,-450.0,0.00031,3]
[310108305,1704348633523,-242834.09463475,0.00031,2]
[310108306,1704348633537,-541.24591888,0.00031,2]
[310108330,1704348638228,-2164.01939999,0.00028043,6]
[310108331,1704348638240,-306.979227,0.00028043,6]
[310108332,1704348638252,-281.53771939,0.00028043,6]
[310108333,1704348638287,-387.54036117,0.00028043,6]
[310108334,1704348638300,-3060.79860135,0.00028043,6]
[310108335,1704348638309,-106625.23950406,0.00031,2]
[310108336,1704348638319,-266.56,0.00031039,2]
[310108337,1704348638330,-154.46,0.00031072,2]
[310108338,1704348638340,-351.18,0.00031096,2]
[310108339,1704348638350,-25705.44281403,0.000311,4]
[310108340,1704348638360,-153.84,0.00031115,2]
[310108341,1704348638370,-150.0,0.0003128,2]
[310108342,1704348638381,-150.0,0.0003128,2]
[310108343,1704348638394,-150.62861519,0.0003128,2]
[310108344,1704348638405,-261.20206956,0.0003128,2]
[310108345,1704348638415,-502.46394889,0.00031357,2]
[310108346,1704348638424,-151.0,0.00031389,30]
[310108347,1704348638433,-247.79798548,0.00031471,5]
[310108348,1704348638443,-247.79798549,0.00031471,5]
[310108349,1704348638453,-483.97,0.00031483,2]
[310108350,1704348638462,-294.0,0.000315,5]
[310108351,1704348638471,-1027.0,0.000315,2]
[310108352,1704348638482,-156.35,0.00031548,2]
[310108353,1704348638491,-1322.63947149,0.00031586,5]
[310108354,1704348638502,-157.60059395,0.00031693,2]
[310108355,1704348638512,-161.6133442,0.000317,2]
[310108356,1704348638521,-2008.81573577,0.00031797,2]
[310108357,1704348638531,-322436.86029631,0.000318,2]
[310108358,1704348638545,-301923.84085912,0.000318,2]
[310108359,1704348638635,-1357.65440333,0.000318,2]
[310108360,1704348638648,-4419.15633148,0.000318,2]
[310108361,1704348638657,-228.923918,0.000318,7]
[310108362,1704348638666,-228.923918,0.000318,7]
[310108363,1704348638681,-800.0,0.000318,11]
[310108364,1704348638691,-6822.99583252,0.000318,3]
[310108365,1704348638704,-11000.0,0.000318,3]
[310108366,1704348638718,-4500.0,0.000318,3]
[310108393,1704348639005,-532.63722571,0.000318,3]
[310108394,1704348639017,-2001.407535,0.000318,3]
[310108395,1704348639028,-360.17460302,0.000318,3]
[310108396,1704348639039,-6614.75837426,0.000318,3]
[310108397,1704348639052,-396.99388232,0.000318,3]
[310108398,1704348639068,-544.38170658,0.000318,3]
[310108399,1704348639083,-395.2299961,0.000318,3]
[310108400,1704348639098,-3946.44737005,0.000318,3]
[310108514,1704348640691,-150.0,0.00031,2]
[310108516,1704348640701,-4928.22712568,0.000318,3]
[310108522,1704348640744,-696.14649559,0.000318,3]
[310108524,1704348640755,-855.30664726,0.000318,3]
[310108527,1704348640768,-7824.1380037,0.000318,3]
[310108529,1704348640779,-8716.25130038,0.000318,3]
[310108531,1704348640790,-17548.2978241,0.000318,3]
[310108534,1704348640803,-287.27274001,0.000318,3]
[310108536,1704348640819,-20066.35746382,0.000318,3]
[310108538,1704348640828,-150.97896658,0.00031828,2]
[310108540,1704348640837,-151.79209118,0.000319,2]
[310108542,1704348640846,-151.79209096,0.000319,2]
[310108544,1704348640856,-1000.0,0.000319,11]
[310108546,1704348640865,-392.19206833,0.00031955,4]
[310108548,1704348640874,-500.0,0.00031973,2]
[310108550,1704348640884,-151.0,0.00032,7]
[310108552,1704348640893,-151.0,0.00032,7]
[310108554,1704348640903,-179.82017932,0.00032,4]
[310108556,1704348640912,-489.13541494,0.00032,4]
[310108558,1704348640921,-5000.0,0.00032,7]
[310108560,1704348640931,-1818.555859,0.00032,3]
[310108562,1704348640940,-167.10920382,0.00032,2]
[310108565,1704348640950,-167.10920382,0.00032,2]
[310108567,1704348640962,-167.10920382,0.00032,2]
[310108569,1704348640972,-157.0,0.00032,2]
[310108571,1704348640981,-151.0,0.00032029,7]
[310108573,1704348640991,-153.84,0.0003203,2]
[310108575,1704348641000,-247.79798549,0.00032043,5]
[310108577,1704348641009,-13966.61534293,0.0003218,2]
[310108579,1704348641022,-324.83345453,0.0003218,2]
[310108582,1704348641033,-410.04619324,0.0003218,2]
[310108610,1704348641529,-20514.2977093,0.0003218,2]
[310108611,1704348641540,-157.60059395,0.0003218,2]
[310108612,1704348641550,-1896.57663984,0.0003227,2]
[310108613,1704348641559,-483.50470278,0.0003227,2]
[310108614,1704348641571,-1221.32293546,0.0003227,2]
[310108615,1704348641581,-207.7607624,0.0003227,2]
[310108616,1704348641593,-196.89218267,0.00032278,4]
[310108617,1704348641602,-200.0,0.00032278,4]
[310108618,1704348641612,-157.97903584,0.00032279,4]
[310108619,1704348641624,-532.22966339,0.00032279,4]
[310108620,1704348641634,-375.97747764,0.00032279,4]
[310108621,1704348641644,-151.0,0.0003228,7]
[310108622,1704348641655,-151.0,0.0003228,2]
[310108623,1704348641664,-151.0,0.0003228,7]
[310108624,1704348641673,-1000.0,0.0003228,2]
[310108625,1704348641682,-151.0,0.0003237,7]
[310108627,1704348641692,-151.0,0.0003237,7]
[310108629,1704348641702,-151.0,0.0003237,7]
[310108630,1704348641713,-24904.95417432,0.0003237,4]
[310108631,1704348641722,-223.05745792,0.0003237,4]
[310108632,1704348641732,-151.79209096,0.00032419,2]
[310108633,1704348641742,-483.97,0.00032461,2]
[310108634,1704348641751,-511.39,0.00032494,2]
[310108635,1704348641762,-150.0,0.00032555,2]
[310108636,1704348641772,-150.0,0.00032574,2]
[310108637,1704348641782,-150.0,0.00032587,2]
[310108638,1704348641794,-150.0,0.0003259,2]
[310108639,1704348641805,-959.10584179,0.00032595,7]
[310108640,1704348641816,-2008.81573577,0.00032596,2]
[310108641,1704348641825,-148052.1324865,0.00032599,2]
[310108642,1704348641838,-831.8685269,0.00032599,2]
[310108643,1704348641851,-1336.15761928,0.00032599,2]
[310108644,1704348641868,-332.96938453,0.00032599,2]
[310108645,1704348641881,-408.00002,0.00032599,2]
[310108646,1704348641893,-330.0,0.00032599,2]
[310108647,1704348641907,-983.82216087,0.00032599,2]
[310108648,1704348641921,-1346.31370766,0.00032599,2]
[310108649,1704348641934,-701.97563417,0.00032599,2]
[310108650,1704348641947,-649.02,0.00032599,2]
[310108651,1704348641960,-640.041,0.00032599,2]
[310108653,1704348643153,-536.45723564,0.00032599,2]
[310108654,1704348643208,-5512.38230237,0.00032599,2]
[310108655,1704348643276,-1192.9975616,0.00032599,2]
[310108656,1704348643290,-3768.63747161,0.00032599,2]
[310108657,1704348643304,-569.85819587,0.00032599,2]
[310108658,1704348643316,-6454.34509549,0.00032599,2]
[310108659,1704348643328,-7473.9466717,0.00032599,2]
[310108660,1704348643341,-392.42517802,0.00032599,2]
[310108661,1704348643369,-714.17778422,0.00032599,2]
[310108662,1704348643382,-409.79455518,0.00032599,2]
[310108663,1704348643407,-9138.77702303,0.00032599,2]
[310108664,1704348643422,-1760.23544479,0.00032599,2]
[310108665,1704348643438,-541.88479081,0.00032599,2]
[310108666,1704348643451,-405.00113522,0.00032599,2]
[310108667,1704348643467,-266.43816103,0.00032599,2]
[310108668,1704348643481,-866.94302276,0.00032599,2]
[310108669,1704348643494,-1367.80188262,0.00032599,2]
[310108670,1704348643510,-338.91068258,0.00032599,2]
[310108671,1704348643524,-1588.94284284,0.00032599,2]
[310108672,1704348643537,-3069.63889084,0.00032599,2]
[310108673,1704348643554,-6515.62893187,0.00032599,2]
[310108674,1704348643564,-151.0,0.00032599,7]
[310108675,1704348643573,-151.0,0.00032599,2]
[310108676,1704348643582,-151.0,0.00032599,7]
[310108677,1704348643591,-151.0,0.00032599,7]
[310108678,1704348643600,-151.0,0.00032599,7]
[310108679,1704348643610,-228.923918,0.00032599,7]
[310108680,1704348643620,-228.923918,0.00032599,7]
[310108681,1704348643629,-160.997934,0.00032599,7]
[310108682,1704348643639,-151.0,0.00032599,7]
[310108683,1704348643648,-151.0,0.00032599,7]
[310108684,1704348643658,-153.818573,0.00032599,7]
[310108685,1704348643667,-247.79798549,0.00032614,6]
[310108686,1704348643677,-150.0,0.00032669,2]
[310108687,1704348643687,-151.0,0.00032683,4]
[310108688,1704348643696,-2008.81573577,0.00032696,2]
[310108689,1704348643707,-150.0,0.00032696,2]
[310108690,1704348643717,-151.0,0.00032697,7]
[310108691,1704348643727,-151.0,0.00032697,7]
[310108692,1704348643737,-151.0,0.00032697,7]
[310108693,1704348643748,-405.0,0.00032697,7]
[310108694,1704348643759,-405.0,0.00032697,7]
[310108695,1704348643769,-1424.24937271,0.00032697,2]
[310108696,1704348643778,-763.81934779,0.00032697,2]
[310108697,1704348643790,-168.04266948,0.00032697,4]
[310108698,1704348643800,-585.67049568,0.00032697,4]
[310108699,1704348643809,-312.50848903,0.00032697,4]
[310108700,1704348643819,-221.63888431,0.00032697,4]
[310108701,1704348643829,-1855.4619327,0.00032697,4]
[310108702,1704348643838,-155.37133856,0.00032697,4]
[310108703,1704348643848,-674.37359214,0.00032697,4]
[310108704,1704348643858,-306.29133373,0.00032697,4]
[310108705,1704348643867,-156.27495987,0.00032697,4]
[310108706,1704348643877,-1252.07088899,0.00032697,4]
[310108707,1704348643892,-231.74545949,0.00032697,4]
[310108708,1704348643906,-200.87532825,0.00032697,4]
[310108709,1704348643920,-202.39707869,0.00032697,4]
[310108710,1704348643934,-965.44823424,0.00032697,4]
[310108711,1704348643946,-2008.81573577,0.00032697,2]
[310108712,1704348643958,-2084.17902066,0.00032698,4]
[310108713,1704348643969,-296.28551618,0.00032698,4]
[310108714,1704348643980,-30892.79118323,0.00032699,3]
[310108715,1704348643996,-356.0,0.00032699,3]
[310108716,1704348644011,-4382.57234375,0.00032699,3]
[310108718,1704348646615,-5298.63358742,0.00025,2]
[310108720,1704348646628,-681.6710574,0.0003,4]
[310108722,1704348646639,-1263.19035857,0.00032598,4]
[310108724,1704348646650,-284.29819489,0.00032598,4]
[310108726,1704348646661,-264.0,0.00032698,5]
[310108728,1704348646671,-286927.55582056,0.00032699,3]
[310108731,1704348646689,-7957.71467253,0.00032699,3]
[310108732,1704348646703,-431.885,0.00032699,3]
[310108733,1704348646724,-9841.19024967,0.00032699,3]
[310108735,1704349108048,865.55639907,0.000192,2]
[310108756,1704349763338,-164.69055572,0.00025499,2]
[310108757,1704349763363,-226.73608249,0.00025499,2]
[310108779,1704349831350,-1688.4697,0.00025399,2]
[310108782,1704349831360,-4188.79190703,0.00025499,2]
[310108786,1704349831370,-1298.0,0.000255,2]
[310108790,1704349831379,-3750.19054117,0.000255,2]
[310108800,1704349831468,-3964.69407762,0.000255,2]
[310108802,1704349831480,-785.98501479,0.000255,2]
[310108805,1704349831493,-2069.13036642,0.000255,2]
[310108807,1704349831503,-350.0,0.00027,3]
[310108808,1704349831512,-11.20006109,0.00027165,2]
[310108811,1704349831530,-459.2369133,0.00027165,2]
[310108813,1704349831542,-78.77302561,0.00027165,2]
[310108814,1704349831551,-228.22582264,0.00027421,2]
[310108815,1704349831561,-52.03950579,0.0002752,2]
[310108816,1704349831573,-449.225,0.0002752,2]
[310108817,1704349831585,-224.41556946,0.0002752,2]
[310108818,1704349831596,-228.22582258,0.00027694,2]
[310108819,1704349831609,-228.22582258,0.00027966,2]
[310108820,1704349831618,-150.0,0.00028238,2]
[310108821,1704349831628,-228.22582258,0.00028239,2]
[310108822,1704349831639,-613.34,0.00028239,2]
[310108823,1704349831649,-2788.59285306,0.00028239,2]
[310108824,1704349831661,-1713.03735611,0.00028239,2]
[310108825,1704349831673,-393.45872412,0.00028239,2]
[310108826,1704349831685,-1002.91106671,0.00028239,2]
[310108827,1704349831695,-1159.22223033,0.00028239,2]
[310108828,1704349831723,-312.06068321,0.00028239,2]
[310108829,1704349831734,-381.79850293,0.00028239,2]
[310108830,1704349831750,-220.29858353,0.00028239,2]
[310108831,1704349831759,-386.24,0.00028239,2]
[310108833,1704349831769,-499.99,0.00028239,2]
[310108834,1704349831778,-378.35,0.0002851,2]
[310108836,1704349831788,-228.22582258,0.00028511,2]
[310108838,1704349831797,-384.40117177,0.00028737,2]
[310108840,1704349831809,-611.97438854,0.00028737,2]
[310108842,1704349831820,-1296.33743969,0.00028737,2]
[310108844,1704349831830,-819.045,0.00028737,2]
[310108846,1704349831839,-2897.332,0.00028737,2]
[310108848,1704349831848,-1929.868,0.00028737,2]
[310108850,1704349831857,-359.14,0.00028737,2]
[310108852,1704349831866,-1054.149,0.00028737,2]
[310108854,1704349831875,-483.75382274,0.00028737,6]
[310108856,1704349831886,-228.22582258,0.00028784,2]
[310108858,1704349831897,-250.0,0.0002886,2]
[310108860,1704349831906,-327.7,0.00028877,2]
[310108862,1704349831915,-559.93,0.00028905,2]
[310108864,1704349831925,-23880.0,0.00028918,2]
[310108866,1704349831934,-1894.35,0.00028967,2]
[310108868,1704349831943,-400.0,0.00029,3]
[310108870,1704349831955,-1046.61,0.0002903,2]
[310108873,1704349831965,-228.22582258,0.00029056,2]
[310108875,1704349831974,-150.0,0.00029126,2]
[310108877,1704349831984,-159.57,0.00029193,2]
[310108879,1704349831993,-182.49,0.00029221,2]
[310108881,1704349832003,-206.0,0.00029244,2]
[310108883,1704349832013,-175.54,0.0002928,2]
[310108884,1704349832023,-228.22582258,0.00029329,2]
[310108885,1704349832032,-250.0,0.00029415,2]
[310108886,1704349832042,-155.41,0.00029429,2]
[310108887,1704349832051,-549.21,0.00029429,2]
[310108888,1704349832060,-228.22582258,0.00029602,2]
[310108889,1704349832070,-228.22582258,0.00029874,2]
[310108890,1704349832079,-833.60848674,0.00029912,2]
[310108891,1704349832088,-519.24065893,0.0003,4]
[310108893,1704349832098,-681.6710574,0.0003,4]
[310108894,1704349832107,-1046.61,0.00030008,2]
[310108896,1704349832116,-6314.9,0.00030137,2]
[310108898,1704349832125,-228.22582258,0.00030147,2]
[310108900,1704349832135,-440.07,0.00030155,2]
[310108902,1704349832144,-228.22582258,0.00030419,2]
[310108904,1704349832154,-159.57,0.00030653,2]
[310108906,1704349832163,-150.99,0.0003069,2]
[310108908,1704349832172,-228.22582258,0.00030692,2]
[310108910,1704349832181,-157.40104,0.00030798,2]
[310108912,1704349832191,-1030.48,0.00030859,2]
[310108914,1704349832200,-157.40104,0.00030898,2]
[310108916,1704349832210,-880.23,0.00030907,2]
[310108918,1704349832219,-228.22582258,0.00030965,2]
[310108921,1704349832229,-1046.61,0.00030987,2]
[310108922,1704349832238,-1534.71,0.0003099,10]
[310108924,1704349832248,-1278.93,0.0003099,10]
[310108927,1704349832257,-1065.77,0.0003099,10]
[310108929,1704349832266,-157.40104,0.00030998,2]
[310108931,1704349832276,-1001.76968198,0.00031,14]
[310108933,1704349832285,-93824.82909002,0.00031,2]
[310108935,1704349832297,-437.66595974,0.00031,2]
[310108937,1704349832313,-11558.52815455,0.00031,2]
[310108943,1704349837462,-309.458,0.00028737,2]
[310108944,1704349837474,-281.894,0.00028737,2]
[310108945,1704349837484,-244179.55685338,0.00031,2]
[310108946,1704349837494,-450.0,0.00031,3]
[310108947,1704349837505,-150.0,0.00031,2]
[310108948,1704349837515,-880.23,0.00031069,2]
[310108949,1704349837525,-157.40104,0.00031098,2]
[310108950,1704349837535,-159.67,0.00031115,2]
[310108951,1704349837545,-157.40104,0.00031198,2]
[310108952,1704349837556,-159.67,0.000312,2]
[310108953,1704349837567,-880.23,0.00031232,2]
[310108954,1704349837576,-228.22582258,0.00031237,2]
[310108955,1704349837586,-159.67,0.00031286,2]
[310108956,1704349837596,-157.40104,0.00031298,2]
[310108957,1704349837606,-175.77,0.000313,2]
[310108958,1704349837616,-223.16,0.00031314,2]
[310108959,1704349837625,-159.67,0.00031371,2]
[310108960,1704349837635,-880.23,0.00031395,2]
[310108961,1704349837645,-157.40104,0.00031398,2]
[310108962,1704349837654,-159.35817158,0.000314,2]
[310108963,1704349837664,-227.27943036,0.00031457,5]
[310108964,1704349837675,-157.40104,0.00031498,2]
[310108965,1704349837685,-228.22582258,0.0003151,2]
[310108966,1704349837694,-25705.44281403,0.00031555,4]
[310108967,1704349837705,-880.23,0.00031557,2]
[310108968,1704349837716,-157.40104,0.00031598,2]
[310108969,1704349837726,-223.16,0.00031624,2]
[310108970,1704349837736,-549.21,0.00031693,2]
[310108971,1704349837746,-157.40104,0.00031698,2]
[310108972,1704349837756,-812.08455662,0.000317,2]
[310108973,1704349837765,-451.90467853,0.00031716,4]
[310108974,1704349837774,-880.23,0.0003172,2]
[310108975,1704349837783,-228.22582258,0.00031782,2]
[310108976,1704349837793,-157.40104,0.00031798,2]
[310108977,1704349837802,-175.77,0.00031848,2]
[310108978,1704349837814,-153.84,0.00031882,2]
[310108979,1704349837824,-880.23,0.00031883,2]
[310108980,1704349837833,-157.40104,0.00031898,2]
[310108981,1704349837843,-223.16,0.00031934,2]
[310108982,1704349837852,-227.2794303,0.00031949,5]
[310108983,1704349837866,-1046.61,0.00031965,2]
[310108984,1704349837903,-157.40104,0.00031998,2]
[310108986,1704349837912,-20090.80400095,0.00032,2]